lending/lending_fUSD_20250122
["ID","MTS","AMOUNT","RATE_DAILY","PERIOD"]
[349949926,1737532243955,-672.59,0.00019449,2]
[349949928,1737532243966,-500.0,0.00019449,2]
[349949931,1737532243976,-500.0,0.00019449,2]
[349949933,1737532243985,-506.01,0.00019449,2]
[349949935,1737532243995,-2892.83,0.00019449,2]
[349949937,1737532244004,-500.0,0.00019449,2]
[349949938,1737532244014,-500.0,0.00019449,2]
[349949941,1737532244024,-528.08656584,0.00019449,2]
[349949942,1737532244033,-500.0,0.00019449,2]
[349949945,1737532244043,-500.0,0.00019449,2]
[349949947,1737532244052,-2602.61,0.00019449,2]
[349949949,1737532244062,-500.0,0.00019449,2]
[349949951,1737532244072,-524.67,0.00019449,2]
[349949952,1737532244081,-500.0,0.00019449,2]
[349949954,1737532244090,-503.35422246,0.00019449,2]
[349949956,1737532244100,-500.0,0.00019449,2]
[349949958,1737532244110,-321.43898221,0.00019449,2]
[349949960,1737532244119,-513.28,0.00019449,2]
[349949963,1737532244129,-774.47,0.00019449,2]
[349949964,1737532244138,-608.31,0.00019449,2]
[349949967,1737532244152,-500.0,0.00019449,2]
[349949969,1737532244162,-500.0,0.00019449,2]
[349949971,1737532244171,-855.19,0.00019449,2]
[349949973,1737532244180,-500.0,0.00019449,2]
[349949975,1737532244191,-500.0,0.00019449,2]
[349949977,1737532244200,-500.0,0.00019449,2]
[349949979,1737532244209,-500.0,0.00019449,2]
[349949981,1737532244218,-500.0,0.00019449,2]
[349949983,1737532244227,-1471.37,0.00019449,2]
[349949985,1737532244237,-500.0,0.00019449,2]
[349949987,1737532244246,-500.0,0.00019449,2]
[349949989,1737532244256,-688.02,0.00019449,2]
[349949991,1737532244266,-945.33,0.00019449,2]
[349949993,1737532244275,-3912.66,0.00019449,2]
[349949995,1737532244285,-1510.84,0.00019449,2]
[349949997,1737532244295,-500.0,0.00019449,2]
[349949999,1737532244304,-500.0,0.00019449,2]
[349950001,1737532244314,-619.46,0.00019449,2]
[349950003,1737532244324,-570.29,0.0001945,2]
[349950005,1737532244335,-500.0,0.0001945,2]
[349950007,1737532244345,-507.32553183,0.0001945,2]
[349950009,1737532244354,-500.0,0.0001945,2]
[349950011,1737532244364,-500.0,0.0001945,2]
[349950013,1737532244374,-500.0,0.0001945,2]
[349950015,1737532244383,-500.0,0.0001945,2]
[349950017,1737532244392,-500.0,0.0001945,2]
[349950019,1737532244402,-500.0,0.0001945,2]
[349950021,1737532244412,-500.0,0.0001945,2]
[349950023,1737532244422,-500.0,0.0001945,2]
[349950025,1737532244432,-836.15,0.0001945,2]
[349950027,1737532244442,-500.0,0.0001945,2]
[349950029,1737532244452,-500.0,0.0001945,2]
[349950030,1737532244462,-500.0,0.0001945,2]
[349950032,1737532244472,-500.0,0.0001945,2]
[349950033,1737532244481,-500.0,0.0001945,2]
[349950034,1737532244491,-520.21571143,0.0001945,2]
[349950035,1737532244500,-508.34100607,0.0001945,2]
[349950036,1737532244510,-506.77973168,0.0001945,2]
[349950037,1737532244520,-567.77453733,0.0001945,2]
[349950038,1737532244530,-500.0,0.0001945,2]
[349950039,1737532244540,-500.0,0.0001945,2]
[349950040,1737532244549,-500.0,0.0001945,2]
[349950041,1737532244559,-501.29009274,0.0001945,2]
[349950042,1737532244568,-664.75,0.0001945,2]
[349950043,1737532244577,-500.0,0.0001945,2]
[349950044,1737532244586,-500.0,0.0001945,2]
[349950045,1737532244596,-500.0,0.0001945,2]
[349950046,1737532244605,-500.0,0.0001945,2]
[349950047,1737532244614,-551.55736126,0.0001945,2]
[349950048,1737532244624,-500.0,0.0001945,2]
[349950049,1737532244634,-500.0,0.0001945,2]
[349950050,1737532244643,-590.24,0.0001945,2]
[349950051,1737532244654,-500.0,0.0001945,2]
[349950052,1737532244664,-621.77082675,0.0001945,2]
[349950053,1737532244673,-514.03722333,0.0001945,2]
[349950054,1737532244684,-571.04,0.0001945,2]
[349950055,1737532244694,-240.10488791,0.0001945,2]
[349950056,1737532244704,-500.0,0.0001945,2]
[349950057,1737532244715,-500.0,0.0001945,2]
[349950058,1737532244724,-500.0,0.0001945,2]
[349950059,1737532244734,-500.0,0.0001945,2]
[349950060,1737532244744,-620.10808636,0.0001945,2]
[349950061,1737532244756,-430.21552245,0.0001945,2]
[349950062,1737532244766,-500.0,0.0001945,2]
[349950063,1737532244776,-500.0,0.0001945,2]
[349950064,1737532244785,-500.0,0.0001945,2]
[349950065,1737532244797,-500.0,0.0001945,2]
[349950066,1737532244807,-505.48774832,0.0001945,2]
[349950067,1737532244817,-500.0,0.0001945,2]
[349950068,1737532244829,-500.0,0.0001945,2]
[349950069,1737532244840,-500.0,0.0001945,2]
[349950070,1737532244849,-503.18,0.0001945,2]
[349950071,1737532244858,-500.0,0.0001945,2]
[349950072,1737532244868,-503.9799309,0.0001945,2]
[349950073,1737532244878,-500.0,0.0001945,2]
[349950074,1737532244888,-503.83964842,0.0001945,2]
[349950075,1737532244899,-500.0,0.0001945,2]
[349950076,1737532244909,-500.0,0.0001945,2]
[349950077,1737532244919,-509.57782686,0.0001945,2]
[349950078,1737532244929,-500.0,0.0001945,2]
[349950079,1737532244939,-559.51985721,0.0001945,2]
[349950080,1737532244949,-500.0,0.0001945,2]
[349950081,1737532244958,-613.72,0.0001945,2]
[349950082,1737532244968,-500.0,0.0001945,2]
[349950083,1737532244978,-500.0,0.0001945,2]
[349950084,1737532244989,-500.0,0.0001945,2]
[349950085,1737532244999,-961.68,0.0001945,2]
[349950086,1737532245009,-608.61,0.0001945,2]
[349950087,1737532245018,-502.79966756,0.0001945,2]
[349950088,1737532245028,-500.0,0.0001945,2]
[349950089,1737532245039,-500.0,0.0001945,2]
[349950090,1737532245048,-477.15401398,0.0001945,2]
[349950091,1737532245057,-508.61198572,0.0001945,2]
[349950092,1737532245067,-500.0,0.0001945,2]
[349950093,1737532245076,-414.49239962,0.0001945,2]
[349950094,1737532245086,-500.0,0.0001945,2]
[349950095,1737532245095,-1195.89,0.0001945,2]
[349950096,1737532245104,-500.0,0.0001945,2]
[349950097,1737532245114,-690.51,0.0001945,2]
[349950098,1737532245123,-500.0,0.0001945,2]
[349950099,1737532245133,-500.0,0.0001945,2]
[349950100,1737532245142,-500.0,0.0001945,2]
[349950101,1737532245152,-500.0,0.0001945,2]
[349950102,1737532245162,-500.0,0.0001945,2]
[349950103,1737532245171,-852.22,0.0001945,2]
[349950104,1737532245181,-765.26,0.0001945,2]
[349950105,1737532245192,-500.0,0.0001945,2]
[349950106,1737532245202,-500.0,0.0001945,2]
[349950107,1737532245211,-556.43508935,0.0001945,2]
[349950108,1737532245220,-300.69210411,0.0001945,2]
[349950109,1737532245230,-500.0,0.0001945,2]
[349950110,1737532245239,-500.0,0.0001945,2]
[349950111,1737532245248,-500.0,0.0001945,2]
[349950112,1737532245258,-865.56,0.0001945,2]
[349950113,1737532245267,-500.0,0.0001945,2]
[349950114,1737532245276,-500.0,0.0001945,2]
[349950115,1737532245286,-500.0,0.0001945,2]
[349950116,1737532245295,-590.79,0.0001945,2]
[349950117,1737532245304,-501.89818512,0.0001945,2]
[349950118,1737532245314,-500.0,0.0001945,2]
[349950119,1737532245323,-314.11829087,0.0001945,2]
[349950120,1737532245332,-515.4939272,0.0001945,2]
[349950121,1737532245342,-250.80157353,0.0001945,2]
[349950122,1737532245351,-801.79,0.0001945,2]
[349950123,1737532245360,-500.0,0.0001945,2]
[349950124,1737532245370,-500.0,0.0001945,2]
[349950125,1737532245379,-500.0,0.0001945,2]
[349950126,1737532245391,-500.0,0.0001945,2]
[349950127,1737532245401,-505.32440513,0.0001945,2]
[349950128,1737532245411,-500.0,0.0001945,2]
[349950129,1737532245420,-595.0,0.0001945,2]
[349950130,1737532245439,-506.32486111,0.0001945,2]
[349950131,1737532245448,-1063.76,0.0001945,2]
[349950132,1737532245458,-500.0,0.0001945,2]
[349950133,1737532245467,-500.0,0.0001945,2]
[349950134,1737532245476,-503.80470088,0.0001945,2]
[349950135,1737532245485,-567.63189087,0.0001945,2]
[349950136,1737532245495,-500.0,0.0001945,2]
[349950138,1737532245505,-500.0,0.0001945,2]
[349950140,1737532245525,-501.39975031,0.0001945,2]
[349950142,1737532245534,-501.52113512,0.0001945,2]
[349950143,1737532245544,-500.0,0.0001945,2]
[349950144,1737532245553,-500.0,0.0001945,2]
[349950145,1737532245563,-500.0,0.0001945,2]
[349950147,1737532245572,-504.60417649,0.0001945,2]
[349950148,1737532245583,-505.87707327,0.0001945,2]
[349950149,1737532245797,-500.0,0.0001945,2]
[349950150,1737532245808,-300.0,0.0001945,2]
[349950151,1737532245818,-500.0,0.0001945,2]
[349950152,1737532245828,-630.76,0.0001945,2]
[349950153,1737532245837,-500.0,0.0001945,2]
[349950154,1737532245847,-500.0,0.0001945,2]
[349950155,1737532245858,-614.47,0.0001945,2]
[349950156,1737532245867,-500.0,0.0001945,2]
[349950157,1737532245877,-500.0,0.0001945,2]
[349950158,1737532245887,-919.79,0.0001945,2]
[349950159,1737532245896,-502.7489489,0.0001945,2]
[349950160,1737532245905,-500.0,0.0001945,2]
[349950161,1737532245915,-500.0,0.0001945,2]
[349950162,1737532245924,-500.0,0.0001945,2]
[349950163,1737532245934,-500.0,0.0001945,2]
[349950164,1737532245943,-500.0,0.0001945,2]
[349950165,1737532245953,-500.0,0.0001945,2]
[349950166,1737532245962,-500.0,0.0001945,2]
[349950167,1737532245971,-500.0,0.0001945,2]
[349950168,1737532245981,-500.0,0.0001945,2]
[349950169,1737532245991,-500.0,0.0001945,2]
[349950170,1737532246000,-500.0,0.0001945,2]
[349950171,1737532246010,-500.0,0.0001945,2]
[349950172,1737532246019,-500.0,0.0001945,2]
[349950173,1737532246029,-328.80094171,0.0001945,2]
[349950174,1737532246039,-500.0,0.0001945,2]
[349950175,1737532246050,-500.0,0.0001945,2]
[349950176,1737532246059,-503.07511198,0.0001945,2]
[349950177,1737532246069,-500.0,0.0001945,2]
[349950178,1737532246079,-500.0,0.0001945,2]
[349950179,1737532246089,-500.0,0.0001945,2]
[349950180,1737532246099,-500.0,0.0001945,2]
[349950181,1737532246108,-500.0,0.0001945,2]
[349950182,1737532246117,-500.0,0.0001945,2]
[349950183,1737532246127,-500.0,0.0001945,2]
[349950184,1737532246137,-741.29,0.0001945,2]
[349950185,1737532246146,-500.0,0.0001945,2]
[349950186,1737532246155,-500.0,0.0001945,2]
[349950187,1737532246165,-500.0,0.0001945,2]
[349950188,1737532246176,-879.62,0.0001945,2]
[349950189,1737532246188,-500.0,0.0001945,2]
[349950190,1737532246198,-500.0,0.0001945,2]
[349950191,1737532246208,-500.0,0.0001945,2]
[349950192,1737532246217,-500.0,0.0001945,2]
[349950194,1737532246226,-1034.0,0.0001945,2]
[349950196,1737532246235,-500.0,0.0001945,2]
[349950198,1737532246244,-500.0,0.0001945,2]
[349950199,1737532246253,-222.17,0.0001945,2]
[349950200,1737532246263,-500.0,0.0001945,2]
[349950201,1737532246273,-514.44267669,0.0001945,2]
[349950202,1737532246282,-500.0,0.0001945,2]
[349950203,1737532246291,-500.0,0.0001945,2]
[349950204,1737532246301,-502.42723347,0.0001945,2]
[349950205,1737532246310,-500.0,0.0001945,2]
[349950206,1737532246319,-500.0,0.0001945,2]
[349950207,1737532246328,-501.49282566,0.0001945,2]
[349950208,1737532246338,-500.0,0.0001945,2]
[349950209,1737532246348,-500.0,0.0001945,2]
[349950210,1737532246358,-500.0,0.0001945,2]
[349950211,1737532246367,-500.0,0.0001945,2]
[349950212,1737532246377,-500.0,0.0001945,2]
[349950213,1737532246387,-500.0,0.0001945,2]
[349950214,1737532246397,-505.09458353,0.0001945,2]
[349950215,1737532246406,-500.0,0.0001945,2]
[349950216,1737532246416,-513.28706739,0.0001945,2]
[349950217,1737532246426,-500.0,0.0001945,2]
[349950218,1737532246436,-500.0,0.0001945,2]
[349950219,1737532246446,-500.0,0.0001945,2]
[349950220,1737532246455,-500.0,0.0001945,2]
[349950221,1737532246464,-500.0,0.0001945,2]
[349950222,1737532246474,-500.0,0.0001945,2]
[349950223,1737532246484,-500.0,0.0001945,2]
[349950224,1737532246494,-500.0,0.0001945,2]
[349950225,1737532246503,-500.0,0.0001945,2]
[349950226,1737532246513,-500.0,0.0001945,2]
[349950227,1737532246523,-500.0,0.0001945,2]
[349950228,1737532246532,-5000.0,0.0001945,2]
[349950229,1737532246542,-500.0,0.0001945,2]
[349950230,1737532246551,-500.0,0.0001945,2]
[349950231,1737532246564,-500.0,0.0001945,2]
[349950232,1737532246576,-500.0,0.0001945,2]
[349950233,1737532246586,-500.0,0.0001945,2]
[349950234,1737532246596,-735.47,0.0001945,2]
[349950235,1737532246607,-535.98,0.0001945,2]
[349950236,1737532246616,-504.57078056,0.0001945,2]
[349950237,1737532246626,-500.0,0.0001945,2]
[349950238,1737532246636,-501.18010024,0.0001945,2]
[349950239,1737532246646,-500.0,0.0001945,2]
[349950240,1737532246656,-1118.65,0.0001945,2]
[349950241,1737532246666,-500.0,0.0001945,2]
[349950242,1737532246677,-500.0,0.0001945,2]
[349950243,1737532246687,-503.65180435,0.0001945,2]
[349950244,1737532246697,-500.0,0.0001945,2]
[349950245,1737532246707,-500.0,0.0001945,2]
[349950246,1737532246716,-986.17,0.0001945,2]
[349950247,1737532246726,-500.0,0.0001945,2]
[349950248,1737532246736,-937.18,0.0001945,2]
[349950249,1737532246747,-500.0,0.0001945,2]
[349950250,1737532246759,-500.0,0.0001945,2]
[349950251,1737532246768,-500.0,0.0001945,2]
[349950252,1737532246777,-500.0,0.0001945,2]
[349950253,1737532246787,-1206.47,0.0001945,2]
[349950254,1737532246796,-500.0,0.0001945,2]
[349950255,1737532246806,-811.76,0.0001945,2]
[349950256,1737532246815,-500.0,0.0001945,2]
[349950257,1737532246825,-1530.63,0.0001945,2]
[349950258,1737532246834,-500.0,0.0001945,2]
[349950259,1737532246844,-1032.05,0.0001945,2]
[349950260,1737532246853,-463.25278668,0.0001945,2]
[349950261,1737532246863,-500.0,0.0001945,2]
[349950262,1737532246872,-2254.73,0.0001945,2]
[349950263,1737532246881,-370.14018003,0.0001945,2]
[349950264,1737532246889,-2695.75,0.0001945,2]
[349950265,1737532246899,-500.0,0.0001945,2]
[349950266,1737532246908,-500.0,0.0001945,2]
[349950267,1737532246917,-5276.91,0.0001945,2]
[349950268,1737532246926,-500.0,0.0001945,2]
[349950269,1737532246936,-500.0,0.0001945,2]
[349950270,1737532246946,-500.0,0.0001945,2]
[349950271,1737532246955,-500.0,0.0001945,2]
[349950272,1737532246965,-8333.29,0.0001945,2]
[349950273,1737532246974,-500.0,0.0001945,2]
[349950274,1737532246983,-500.0,0.0001945,2]
[349950275,1737532246992,-500.0,0.0001945,2]
[349950276,1737532247001,-500.0,0.0001945,2]
[349950277,1737532247010,-500.0,0.0001945,2]
[349950278,1737532247019,-500.0,0.0001945,2]
[349950279,1737532247029,-500.0,0.0001945,2]
[349950280,1737532247039,-500.0,0.0001945,2]
[349950281,1737532247048,-1093.2,0.0001945,2]
[349950282,1737532247058,-656.15,0.0001945,2]
[349950283,1737532247067,-500.0,0.0001945,2]
[349950284,1737532247077,-772.82,0.0001945,2]
[349950285,1737532247087,-500.0,0.0001945,2]
[349950286,1737532247097,-1593.43,0.0001945,2]
[349950287,1737532247106,-806.26,0.0001945,2]
[349950288,1737532247116,-500.0,0.0001945,2]
[349950289,1737532247127,-500.0,0.0001945,2]
[349950290,1737532247136,-500.0,0.0001945,2]
[349950291,1737532247146,-565.99,0.0001945,2]
[349950292,1737532247155,-1146.15,0.0001945,2]
[349950293,1737532247165,-500.0,0.0001945,2]
[349950294,1737532247175,-503.98109228,0.0001945,2]
[349950295,1737532247185,-500.0,0.0001945,2]
[349950296,1737532247194,-500.0,0.0001945,2]
[349950297,1737532247204,-500.0,0.0001945,2]
[349950298,1737532247215,-1522.4,0.0001945,2]
[349950299,1737532247224,-1686.59,0.0001945,2]
[349950300,1737532247234,-500.0,0.0001945,2]
[349950301,1737532247244,-500.0,0.0001945,2]
[349950302,1737532247254,-500.0,0.0001945,2]
[349950303,1737532247264,-500.0,0.0001945,2]
[349950304,1737532247274,-979.31,0.0001945,2]
[349950305,1737532247284,-1000.0,0.0001945,2]
[349950306,1737532247294,-500.0,0.0001945,2]
[349950307,1737532247304,-500.0,0.0001945,2]
[349950308,1737532247313,-663.9,0.0001945,2]
[349950309,1737532247323,-2694.03,0.0001945,2]
[349950310,1737532247333,-2107.12,0.0001945,2]
[349950311,1737532247343,-500.0,0.0001945,2]
[349950312,1737532247353,-943.55,0.0001945,2]
[349950313,1737532247363,-538.21493752,0.0001945,2]
[349950314,1737532247373,-500.0,0.0001945,2]
[349950315,1737532247383,-500.0,0.00019451,2]
[349950316,1737532247392,-500.0,0.00019451,2]
[349950317,1737532247402,-300.58398963,0.00019451,2]
[349950318,1737532247411,-1190.74,0.00019451,2]
[349950319,1737532247421,-568.31,0.00019451,2]
[349950320,1737532247430,-753.02,0.00019451,2]
[349950321,1737532247440,-666.43,0.00019451,2]
[349950322,1737532247449,-500.0,0.00019451,2]
[349950323,1737532247459,-500.0,0.00019451,2]
[349950324,1737532247468,-500.0,0.00019451,2]
[349950325,1737532247478,-1373.17,0.00019451,2]
[349950326,1737532247488,-823.85,0.00019451,2]
[349950327,1737532247497,-1119.68,0.00019451,2]
[349950328,1737532247506,-500.0,0.00019451,2]
[349950329,1737532247516,-976.64,0.00019451,2]
[349950330,1737532247526,-500.0,0.00019451,2]
[349950331,1737532247535,-500.0,0.00019451,2]
[349950332,1737532247545,-500.0,0.00019451,2]
[349950333,1737532247555,-500.0,0.00019451,2]
[349950334,1737532247564,-781.54,0.00019451,2]
[349950335,1737532247574,-500.0,0.00019451,2]
[349950336,1737532247583,-500.0,0.00019451,2]
[349950337,1737532247593,-500.0,0.00019451,2]
[349950338,1737532247603,-500.0,0.00019451,2]
[349950339,1737532247612,-500.0,0.00019451,2]
[349950340,1737532247622,-193.32091315,0.00019452,2]
[349950341,1737532247632,-485.764662,0.00019473,2]
[349950342,1737532247641,-2363.85907589,0.00019527,2]
[349950343,1737532247652,-4522.72710987,0.00019632,2]
[349950344,1737532247662,-1131.0,0.000197,2]
[349950345,1737532247671,-1000.0,0.000197,2]
[349950346,1737532247681,-1005.0,0.000197,3]
[349950347,1737532247691,-1000.0,0.000197,2]
[349950348,1737532247700,-2363.85907589,0.00019704,2]
[349950349,1737532247711,-500.0,0.00019722,2]
[349950350,1737532247723,-500.0,0.00019722,2]
[349950351,1737532247732,-923.06,0.00019722,2]
[349950352,1737532247742,-509.29,0.00019723,2]
[349950353,1737532247756,-508.54818799,0.00019723,2]
[349950354,1737532247768,-500.0,0.00019723,2]
[349950355,1737532247778,-757.58,0.00019723,2]
[349950356,1737532247788,-500.0,0.00019723,2]
[349950357,1737532247797,-500.0,0.00019723,2]
[349950358,1737532247807,-913.46,0.00019723,2]
[349950359,1737532247817,-1020.58,0.00019723,2]
[349950360,1737532247827,-500.0,0.00019723,2]
[349950361,1737532247837,-500.0,0.00019723,2]
[349950362,1737532247847,-709.86,0.00019723,2]
[349950363,1737532247856,-500.0,0.00019723,2]
[349950364,1737532247866,-500.0,0.00019723,2]
[349950365,1737532247877,-500.0,0.00019723,2]
[349950366,1737532247886,-639.07,0.00019723,2]
[349950367,1737532247895,-519.19,0.00019723,2]
[349950368,1737532247904,-500.0,0.00019723,2]
[349950369,1737532247914,-965.86,0.00019723,2]
[349950370,1737532247924,-989.45,0.00019723,2]
[349950371,1737532247935,-500.0,0.00019723,2]
[349950372,1737532247945,-500.0,0.00019723,2]
[349950373,1737532247955,-500.0,0.00019723,2]
[349950374,1737532247965,-500.0,0.00019723,2]
[349950375,1737532247974,-500.0,0.00019723,2]
[349950376,1737532247986,-500.0,0.00019723,2]
[349950377,1737532247996,-500.0,0.00019723,2]
[349950378,1737532248006,-1077.9,0.00019723,2]
[349950379,1737532248017,-625.33,0.00019723,2]
[349950380,1737532248026,-1181.787575,0.00019723,2]
[349950381,1737532248036,-575.99,0.00019723,2]
[349950382,1737532248045,-500.0,0.00019723,2]
[349950383,1737532248055,-568.32,0.00019723,2]
[349950384,1737532248064,-1264.95,0.00019723,2]
[349950385,1737532248074,-893.081462,0.00019723,2]
[349950386,1737532248083,-500.0,0.00019723,2]
[349950387,1737532248092,-500.0,0.00019723,2]
[349950388,1737532248102,-500.0,0.00019723,2]
[349950389,1737532248111,-918.92,0.00019723,2]
[349950390,1737532248121,-518.42197236,0.00019723,2]
[349950391,1737532248130,-1278.65,0.00019723,2]
[349950392,1737532248140,-500.0,0.00019723,2]
[349950393,1737532248149,-500.0,0.00019723,2]
[349950394,1737532248159,-1421.25,0.00019723,2]
[349950395,1737532248168,-500.0,0.00019723,2]
[349950396,1737532248178,-589.97,0.00019723,2]
[349950397,1737532248188,-997.04,0.00019723,2]
[349950398,1737532248197,-500.0,0.00019723,2]
[349950399,1737532248206,-500.0,0.00019723,2]
[349950400,1737532248216,-547.73,0.00019723,2]
[349950401,1737532248227,-500.0,0.00019723,2]
[349950402,1737532248236,-500.0,0.00019723,2]
[349950403,1737532248246,-500.0,0.00019723,2]
[349950404,1737532248255,-1714.18,0.00019723,2]
[349950405,1737532248265,-969.31,0.00019723,2]
[349950406,1737532248275,-501.43523352,0.00019723,2]
[349950407,1737532248285,-500.0,0.00019723,2]
[349950408,1737532248295,-500.0,0.00019723,2]
[349950409,1737532248304,-500.0,0.00019723,2]
[349950410,1737532248314,-960.44,0.00019723,2]
[349950411,1737532248324,-500.0,0.00019723,2]
[349950412,1737532248334,-500.0,0.00019723,2]
[349950413,1737532248344,-1041.16,0.00019723,2]
[349950414,1737532248353,-203.14020915,0.00019723,2]
[349950415,1737532248362,-500.0,0.00019723,2]
[349950416,1737532248371,-500.0,0.00019723,2]
[349950417,1737532248381,-500.0,0.00019723,2]
[349950418,1737532248390,-500.0,0.00019723,2]
[349950419,1737532248399,-509.31912478,0.00019723,2]
[349950420,1737532248409,-500.0,0.00019723,2]
[349950421,1737532248418,-500.0,0.00019723,2]
[349950422,1737532248428,-500.0,0.00019723,2]
[349950423,1737532248438,-834.06,0.00019723,2]
[349950424,1737532248447,-500.0,0.00019723,2]
[349950425,1737532248457,-500.0,0.00019723,2]
[349950426,1737532248466,-500.0,0.00019723,2]
[349950427,1737532248475,-500.0,0.00019723,2]
[349950428,1737532248484,-1130.1,0.00019723,2]
[349950429,1737532248494,-896.26,0.00019723,2]
[349950430,1737532248504,-500.0,0.00019723,2]
[349950431,1737532248514,-500.0,0.00019723,2]
[349950432,1737532248523,-500.0,0.00019723,2]
[349950433,1737532248533,-500.0,0.00019723,2]
[349950434,1737532248543,-1256.35,0.00019723,2]
[349950435,1737532248552,-500.0,0.00019723,2]
[349950436,1737532248561,-500.0,0.00019723,2]
[349950437,1737532248572,-644.99,0.00019723,2]
[349950438,1737532248582,-500.0,0.00019723,2]
[349950439,1737532248591,-509.00722959,0.00019723,2]
[349950440,1737532248600,-500.0,0.00019723,2]
[349950441,1737532248610,-500.0,0.00019723,2]
[349950442,1737532248619,-503.87905432,0.00019723,2]
[349950443,1737532248628,-500.0,0.00019723,2]
[349950444,1737532248638,-500.0,0.00019723,2]
[349950445,1737532248647,-500.0,0.00019723,2]
[349950446,1737532248656,-923.94,0.00019723,2]
[349950447,1737532248666,-836.1,0.00019723,2]
[349950448,1737532248675,-189.74836855,0.00019723,2]
[349950449,1737532248684,-787.03,0.00019723,2]
[349950450,1737532248694,-500.0,0.00019723,2]
[349950451,1737532248847,-500.0,0.00019723,2]
[349950452,1737532248857,-1670.96,0.00019723,2]
[349950453,1737532248866,-782.6,0.00019723,2]
[349950454,1737532248877,-343.12974026,0.00019723,2]
[349950455,1737532248887,-500.0,0.00019723,2]
[349950456,1737532248896,-500.0,0.00019723,2]
[349950457,1737532248906,-2654.28,0.00019723,2]
[349950458,1737532248917,-500.0,0.00019723,2]
[349950459,1737532248928,-1896.73,0.00019723,2]
[349950460,1737532248938,-500.0,0.00019723,2]
[349950461,1737532248948,-500.0,0.00019723,2]
[349950462,1737532248958,-1248.03,0.00019723,2]
[349950463,1737532248968,-500.0,0.00019723,2]
[349950464,1737532248978,-499.999999,0.00019723,2]
[349950465,1737532248989,-500.0,0.00019723,2]
[349950466,1737532248998,-500.0,0.00019723,2]
[349950467,1737532249008,-500.0,0.00019723,2]
[349950468,1737532249019,-500.0,0.00019723,2]
[349950469,1737532249028,-1663.07,0.00019723,2]
[349950470,1737532249038,-500.0,0.00019723,2]
[349950471,1737532249048,-739.2,0.00019723,2]
[349950472,1737532249057,-500.0,0.00019723,2]
[349950473,1737532249067,-541.54,0.00019723,2]
[349950474,1737532249076,-1035.04,0.00019723,2]
[349950475,1737532249086,-2005.38,0.00019723,2]
[349950476,1737532249095,-500.0,0.00019723,2]
[349950477,1737532249104,-500.0,0.00019723,2]
[349950478,1737532249114,-500.0,0.00019723,2]
[349950479,1737532249124,-858.39,0.00019723,2]
[349950480,1737532249134,-1070.22,0.00019723,2]
[349950481,1737532249143,-763.83,0.00019723,2]
[349950482,1737532249152,-1133.32,0.00019723,2]
[349950483,1737532249161,-500.0,0.00019723,2]
[349950484,1737532249171,-500.0,0.00019723,2]
[349950485,1737532249180,-1208.68,0.00019723,2]